Workbook

Sheet Cover Page
D1: Add company logo
N2: Version 2.1 11/11/19
B8: Add photo
N13: Notes:
N14: This template may require adjustments by individual operators to meet specific reporting requirements as defined in the site Permit(s)
B29: Annual Performance Report 2021
B31: Permit EPR/XP3436WB/V002
B33: SUEZ R&R Wilton 11 EfW
B35: other name of facility (if applicable)
B37: SUEZ R&R
B39: Year: | C39: 2021
B41: Address: | C41: Wilton International, Middlesbrough TS10 4RG
B43: Tel: | C43: 01642 442400
B45: Email: | C45: paula.bakes@suez.com
B47: Prepared by: | C47: Paula Bakes | F47: Position: | G47: EIR Manager
B49: Approved by: | C49: Alex Biggins | F49: Position: | G49: Plant Manager
B51: Version: | C51: 1
B53: Issue Date: | C53: 2022-01-12

Sheet Contents
A1: =+'Cover Page'!$B$29 -> Annual Performance Report 2021 | E1: =+'Cover Page'!$B$33 -> SUEZ R&R Wilton 11 EfW
A3: Contents | K3: Notes:
A4: Section | B4: Subject | H4: Page | K4: Section references and Page nos. to be inserted
B5: Facility Information | K5: Sections and Subjects may require adjustment by individual operators to meet specific reporting requirements as defined in the sites Permit(s)
B6: Operational Summary
B7: Operational Data
B8: Performance Form 1
B9: Energy Form 1
B10: Permit Compliance
B11: Improvements
B12: Public Liasion
B13: Residue Quality - Optional
B14: Emissions to Water
B15: Emissions to Air (periodically monitored)
B16: Emissions to Air (continuously monitored)
B17: Hydrogen Chloride emissions
B18: Sulphur Dioxdie emsissions
B19: Oxides of Notrigen emissions
B20: Total Organic Carbon emissions
B21: Particulate Matter emissions
B22: Carbon Monoxide emissions
B23: Ammonia emissions
A26: Version Control
A27: Section | B27: Information | H27: Date
A34: Distribution
A35: Copy | B35: Name, Role | H35: No.
A44: This report is required under the Industrial Emissions Directive’s Article 55(2) requirements on reporting and public information on waste incineration plants and co-incineration plants, which require the operator to produce an annual report on the functioning and monitoring of the plant and make it available to the public.

Sheet Facility Info
A1: =+'Cover Page'!$B$29 -> Annual Performance Report 2021 | E1: =+'Cover Page'!$B$33 -> SUEZ R&R Wilton 11 EfW
A3: Plant Description and Design | K3: Notes:
A5: The Energy from Waste facility operates 24/7 and has a design capacity of 49.9 MW. This requires a fuel input with a maximum continuous rating of around 29.2 tonnes per hour of MSW (from Merseyside County Council and various commercial customers) with an average net calorific value of 9.8 MJ/kg. This equates to 467,200 tonnes per annum at 8000 hours operation per annum through two combustion lines. The plant has two Lines capable of processing up to 500,000 tonnes of waste per year. Incoming waste is delivered to site by rail and bulk vehicle trucks. Rail waste is checked at SUEZ’s Knowsley Transfer station, weighed and then loaded into ISO containers before being placed onto rail carriages and transported to the EFW facility. Road waste is weighed via weighbridge at the Wilton site, and then tipped in the traditional way in the waste reception hall. (alt enter to make new para) | K5: Include summary of plant design, design capacity, no. of combustion lines, electrical and heat capacity and any other general information that descibes the facility, its location and purpose
A20: Summary of Operational Processes and Procedures
A22: WASTE RECEPTION The plant is designed to accept contractual waste from Merseyside County Council via rail in bespoke ISO containers. Once at the EFW plant, the containers are lifted off the rail carriages by a gantry crane and placed onto mechanical ‘tilters’ The tilters operate hydraulically and move to the edge of the waste pit waste before being tilted to a 60 degree angle, allowing the waste to fall into the waste pit. Waste is also delivered by road via Bulk Transfer Vehicles in the standard operating way. Air needed for combustion is drawn into the furnace from above the waste reception hall so that odour and dust do not escape from the building. BUNKER Mixing of waste occurs as the crane driver sorts the waste looking for unsuitable wastes to be removed, and to improve the homogeneity of the incinerator feedstock. CONTROL ROOM There is one control room which centralises the operation of all equipment, including the grab crane used to mix and load waste into hoppers that feeds the furnace. All on-site functions are monitored automatically and manually. Its systems verify in real time that equipment is functioning properly, continuously monitor the combustion gas, and maximise the efficiency of the entire EfW process. GRATE AND BOILER Waste is lifted into the feed hoppers by the crane, from here waste falls into the furnace-charging chute and then onto the grate system for incineration. The thermal energy released from the burning is used to convert water to super-heated steam. At high pressure, this steam drives a turbine to generate electricity. ENERGY GENERATION Electricity is generated at 11kv, with an electric capacity of 49.9 MWh. The plant also has the capability of exporting steam at 3 different pressures, 58 bar(g), 17 bar(g) and 1.4 bar(g). Steam is exported into the Wilton International site headers for use by a number of plants on site. Where possible the steam is taken from turbine extract to ensure maximum efficiency. BOTTOM ASH Ash left on the grate after incineration is carried by conveyor to a recycling facility opposite the EFW plant. Once operational (February 2017) the bottom ash recycling facility will use a magnet above the conveyor to extract ferrous material for recycling. The remaining bottom ash is processed for recycling following classification of its hazardous properties. WATER-COOLED CONDENSERS After exiting the turbine, the steam is cooled and condensed back into water through water cooled condensers. This recovered water is treated and reused in the boilers to produce more steam. The water cooled condenser is capable of taking the full load from the boiler to ensure continuous operation of the EfW Plant. EMISSION CONTROL The gases from the furnace are subject to a rigorous cleaning process involving selective non-catalytic reduction (SNCR), spray absorbers, and active carbon injection. This removes oxides of nitrogen, acidic gases, dioxins, and heavy metals from the gas stream. AIR POLLUTION CONTROL RESIDUE (APCR) The cleaned gas is passed through fine-fabric bag filters to remove solid particles before it is emitted through the stack. The resultant APCR residue, or fly-ash, contains particles from the incineration process, we have a semi dry lime injection system. It is stored in a sealed silo until it removed from site for disposal. EMISSIONS MONITORING As they pass through the stack, the residual flue gases from the process are continuously monitored before release. Each incinerator line has and independent stack and emissions monitoring system. This data is relayed automatically to the control room. (alt enter to make new para) | K22: Include summary of key processes and procedures such as (but not limited to); waste reception, control rooms, grate, bed and bolier, energy & heat generation, cooling systems, residue management, emission controls, health and safety systems, maintenance

Sheet Operational Data
A1: =+'Cover Page'!$B$29 -> Annual Performance Report 2021 | E1: =+'Cover Page'!$B$33 -> SUEZ R&R Wilton 11 EfW
A3: Operational Data
A4: Plant Size | B4: 500000 | D4: tonnes pa | E4: 170 | F4: MWth | G4: 49 | H4: MWe
A5: No. of combustion lines | B5: 2 | D5: No. of Turbines: | F5: 1
A7: Waste types received | B7: Unit | C7: Q1 | D7: Q2 | E7: Q3 | F7: Q4 | G7: Year Total | H7: %
A8: Household / Local Authority | B8: tonnes | C8: 122752.83 | D8: 112669.99 | E8: 98892.13 | F8: 122577 | G8: =SUM(C8:F8) -> 456891.95 | H8: =IF(G8>0,G8/$G$18,"-") -> 0.9957111097
A9: Commercial & Industrial | C9: 731.52 | D9: 0 | E9: 47.22 | F9: 888.26 | G9: =SUM(C9:F9) -> 1667 | H9: 0.003632916754
A10: Hazardous | C10: - | D10: - | E10: - | F10: - | G10: 0 | H10: -
A11: Clinical | C11: - | D11: - | E11: - | F11: - | G11: 0 | H11: -
A12: Waste wood (biomass) | C12: - | D12: - | E12: - | F12: - | G12: 0 | H12: -
A13: Refuse derived fuel | C13: 175 | G13: 175 | H13: 0.0003813799832
A14: Solid recovered fuel | C14: - | D14: - | E14: - | F14: - | G14: 0 | H14: -
A15: Spec Compost 19.05.03 | C15: 126 | E15: - | F15: - | G15: 126 | H15: 0.0002745935879
A16: Other [Please specify] | G16: 0 | H16: -
A17: Other [Please specify]
A18: Total waste received | C18: =SUM(C8:C17) -> 123785.35 | D18: =SUM(D8:D17) -> 112669.99 | E18: =SUM(E8:E17) -> 98939.35 | F18: =SUM(F8:F17) -> 123465.26 | G18: =SUM(G8:G17) -> 458859.95 | H18: 1
A19: Rejected Waste | C19: 0 | D19: 0 | E19: 0 | F19: 0 | G19: =SUM(C19:F19) -> 0 | H19: =IF(G19>0,G19/$G$18,"-") -> -
A20: Waste transferred out | C20: 0 | D20: 0 | E20: 0 | F20: 0 | G20: =SUM(C20:F20) -> 0 | H20: =IF(G20>0,G20/$G$18,"-") -> -
A21: Total waste combusted | C21: =C18-SUM(C19:C20) -> 123785.35 | D21: =D18-SUM(D19:D20) -> 112669.99 | E21: 98939.35 | F21: 123465.26 | G21: =SUM(C21:F21) -> 458859.95 | H21: =IF(G21>0,G21/$G$18,"-") -> 1
A22: Energy Useage / Export | B22: Unit | C22: Q1 | D22: Q2 | E22: Q3 | F22: Q4 | G22: Year Total | H22: KWh/te
A23: Power Generated | B23: MWh | C23: 60322.2 | D23: 54983.85 | E23: 40257.69 | F23: 57703.648 | G23: =SUM(C23:F23) -> 213267.388 | H23: =IF(G23>0,G23*1000/$G$21,"-") -> 464.7766448
A24: Power Exported | C24: 49842.3 | D24: 45023.44 | E24: 31355 | F24: 47444.4 | G24: =SUM(C24:F24) -> 173665.14 | H24: =IF(G24>0,G24*1000/$G$21,"-") -> 378.4709038
A25: Power Used on site | C25: 10483.17 | D25: 9970.21 | E25: 9411.57 | G25: =SUM(C25:F25) -> 29864.95 | H25: =IF(G25>0,G25*1000/$G$21,"-") -> 65.0851093
A26: Power Imported | C26: 3.27 | D26: 9.8 | E26: 508.88 | G26: 521.95 | H26: =IF(G26>0,G26*1000/$G$21,"-") -> 1.137493041
A27: Parasitic Load | B27: % | C27: 0.1738 | D27: 0.1813 | E27: 0.234 | G27: =IF(G23>0,1-G24/(G23+G26),"-") -> 0.1876810059
A28: Thermal Energy Produced | B28: MWh | C28: 77066.94572 | D28: 75448.16526 | E28: 83136.73346 | F28: 97229.04041 | G28: =SUM(C28:F28) -> 332880.8848 | H28: =IF(G28>0,G28*1000/$G$21,"-") -> 725.4520357
A29: Thermal Energy Exported | C29: 77066.94572 | D29: 75448.16526 | E29: 83136.73346 | F29: 97229.04041 | G29: 332880.8848 | H29: =IF(G29>0,G29*1000/$G$21,"-") -> 725.4520357
A30: R1 value | C30: 0.83 | G30: Design / Operational / n/a
A32: Waste Disposal & Recovery | B32: Unit | C32: Q1 | D32: Q2 | E32: Q3 | F32: Q4 | G32: Year Total | H32: % inputs
A33: APC Residues - produced | B33: tonnes | C33: 2168.82 | D33: 2087.86 | E33: 1944.94 | F33: 2398 | G33: =SUM(C33:F33) -> 8599.62 | H33: =IF(G33>0,G33/$G$21,"-") -> 0.01874127389
A34: IBA - produced | C34: 29831.57 | D34: 28540.13 | E34: 23371.62 | F34: 26858 | G34: 108601.32 | H34: =IF(G34>0,G34/$G$21,"-") -> 0.2366763977
A35: Metals recycling | C35: 5156 | D35: 4775 | E35: 4256 | F35: 3743 | G35: =SUM(C35:F35) -> 17930 | H35: 0.03907510342
A36: Ferrous | C36: 3368 | D36: 2889 | E36: 2529 | F36: 2415 | G36: =SUM(C36:F36) -> 11201 | H36: 0.02441049824
A37: Non Ferrous | C37: 1782 | D37: 1886 | E37: 1727 | F37: 1328 | G37: 6723 | H37: 0.0146515293
A38: Mixed Metal Skips (Scrap Metal Skips) | C38: 10 | D38: 2 | E38: 6 | F38: 8 | G38: 26 | H38: 5.666216893e-05
A40: Raw Material Usage | B40: Unit | C40: Q1 | D40: Q2 | E40: Q3 | F40: Q4 | G40: Year Total | H40: kg or Ltr /te
A41: Mains Water | B41: m3 | C41: 10821 | D41: 14377 | E41: 14321 | F41: 13608 | G41: =SUM(C41:F41) -> 53127 | H41: =IF(G41>0,G41/$G$21,"-") -> 0.1157804249
A42: Other Water ( Demin & Raw) | B42: m3 | C42: 206221 | D42: 199696 | E42: 170760 | F42: 191282 | G42: 767959 | H42: =IF(G42>0,G42/$G$21,"-") -> 1.673623946
A43: Ammonia / Urea | B43: kgs | C43: 465000 | D43: 439000 | E43: 429100 | F43: 559440 | G43: 1892540 | H43: 4.124439276
A44: Activated Carbon | B44: kgs | C44: 24100 | D44: 22160 | E44: 18760 | F44: 23960 | G44: 88980 | H44: 0.1939153766
A45: Lime / hydrated lime | B45: kgs | C45: 932800 | D45: 984920 | E45: 814640 | F45: 1113360 | G45: 3845720 | H45: 8.381032165
A46: Fuel oil (Mobile Plant) | B46: ltrs | C46: 1070 | D46: 773 | E46: 15769 | F46: 999 | G46: 18611 | H46: 0.04055921638
A47: Natural Gas | B47: MWh | C47: 1493 | D47: 2338.22 | E47: 2151.57 | F47: 2124 | G47: 8106.79 | H47: 0.01766724248
A48: Other | C48: 0 | D48: 0 | E48: 0 | F48: 0 | G48: 0 | H48: -
A50: Summary of Hours | B50: Line/Unit | C50: Q1 | D50: Q2 | E50: Q3 | F50: Q4 | G50: Year Total
A51: Hours of waste combustion, total | B51: 1 | C51: 2100.7 | D51: 1781.2 | E51: 1440.64 | F51: 2115.7 | G51: =SUM(C51:F51) -> 7438.24 | H51: =+(G51)/8760 -> 0.8491141553
A52: Hours of waste combustion, total | B52: 2 | C52: 2064.1 | D52: 2089.1 | E52: 1682.9 | F52: 1937 | G52: 7773.1 | H52: =+(G52)/8760 -> 0.8873401826
A53: Hours of waste combustion, total | B53: 3 | C53: 0 | D53: 0 | E53: 0 | F53: 0 | G53: 0 | H53: x %
A54: Hours of waste combustion, total | B54: 4 | C54: 0 | D54: 0 | E54: 0 | F54: 0 | G54: 0 | H54: x %
A55: Hours of waste combustion, total | B55: 5 | C55: 0 | D55: 0 | E55: 0 | F55: 0 | G55: =SUM(C55:F55) -> 0 | H55: x %
A56: Overall Avaliability, mean average of all lines | C56: =C51+C52 -> 4164.8 | D56: =D51+D52 -> 3870.3 | E56: 3123.54 | F56: 4052.7 | G56: 15211.34 | H56: =+(G56)/8760 -> 1.736454338
A57: Hours of turbine operations, total | B57: 1 | C57: 2013.6 | D57: 2182.8 | E57: 1768.9 | F57: 2092.4 | G57: 8057.7 | H57: x %
A58: Hours of turbine operations, total | B58: 2 | G58: 0 | H58: x %
A59: Hours of heat / steam export | C59: 0 | D59: 0 | E59: 0 | F59: 0 | G59: 0 | H59: =IF(B59>0,G58/8760,"n/a") -> n/a
A60: Net Calorific Value of waste | B60: MJ/kg | C60: 9.2 | D60: 9.5 | E60: 9.5 | F60: 9.2 | G60: 37.4
A61: Abnormal Events | B61: qty. | C61: - | D61: 0 | E61: 0 | F61: 0 | G61: 0 | H61: =IF(G61>0,"yes","no") -> no
A62: Abnormal operation | B62: hours | C62: - | D62: 0 | E62: 0 | F62: 0 | G62: 0 | H62: =+(G62)/8760 -> 0
A63: Permit Breaches | B63: qty. | C63: 0 | D63: 0 | E63: 0 | F63: 0 | G63: 0 | H63: =IF(G63>0,"yes","no") -> no

Sheet Operational Summary
A1: =+'Cover Page'!$B$29 -> Annual Performance Report 2021 | E1: =+'Cover Page'!$B$33 -> SUEZ R&R Wilton 11 EfW
A3: Summary of Plant Operations and Maintenance during the reporting year | K3: Notes:
A5: A very positive year with regards to the reduction in unplanned equipment stoppages, however there were several breakdowns, across the year: The year started with the Turbine being off line due to a PLC failure, it was returned to service on 06 Jan 21. Concurrently we started to monitor high vibration on the ID fan on Line One, which was causing the ID Fan to regularly trip. With the assistance of several SME we resolved the issue several weeks later. The Grate on Line Two had to be brought off line due to blockage in Feb 21, which was subsequently identified as grate bars failure; several grate bars had fractured and fell through to the grate bed causing a build up of ash under the grate. This problem was share with the OEM and whilst this is a uncommon failure it was not unique. There were two unrelated tube leaks during Aug, the second as a direct result of the pressure test for the first tube leak. Both were quickly repaired and the line returned to service. Finally Line Two ID Fan bearing suffered a catastrophic failure in Nov, which brought Line Two off processing for 10 days. There were two planned maintenance periods during 2021; the first being a minor outages planned for the first and third week of April. Due to operational pressures the second planned period was significantly reduced to demetalling the Grate only. Only critical activity was undertaking during the April outage. The major maintenance activity which was planned over the period 01 Sep - 05 Oct, was concluded successfully. Major maintenance activity included boiler tube repairs, refractory survey and replacement and a minor service on the Grate. The Turbine underwent a level two maintenance event with nothing of significance to report. | K5: Include summary of key operational and/or maintenance activity undertaken in the year, such as any major component upgrades and/or replacements
A29: Summary of Residue Handling for the reporting year
A31: Residue handling system has performed well in 2021, previously we observed some corrosion in the actilab double screws, this was relined and coated with a resistant material in 2019 and on inspection this year there was minimal wear on the system so no additional work required on the double screws. | K31: Include in here a summary of residue handling regimes and destinations

Sheet Perf. Form 1
A1: =+'Cover Page'!C39 -> 2021 | B1: Annual Reporting Performance Form 1
A3: =+'Cover Page'!B31 -> Permit EPR/XP3436WB/V002 | F3: Operator: | G3: =+'Cover Page'!B37:I37 -> 0
A4: Facility: | B4: =+'Cover Page'!B33:I33 -> SUEZ R&R Wilton 11 EfW | F4: Form: | G4: Performance 1
A6: Reporting Period from: | D6: January | F6: to: | G6: December
A8: =+A1 -> 2021 | B8: Annual Reporting of Waste Disposal and Recovery
A9: Waste Description | C9: Disposal Route(s) | E9: Disposal Tonnes | G9: Recovery Tonnes | I9: % / tonne of waste incinerated
A10: 1) Hazardous Wastes
A11: APC Residues | C11: Landfill | E11: ='Operational Data'!G33 -> 8599.62 | G11: 0 | I11: =IF((E11+G11)>0,(E11+G11)/'Operational Data'!$G$21, "-") -> 0.01874127389
A12: IBA | I12: =IF((E12+G12)>0,(E12+G12)/'Operational Data'!$G$21, "-") -> -
I13: =IF((E13+G13)>0,(E13+G13)/'Operational Data'!$G$21, "-") -> -
I14: =IF((E14+G14)>0,(E14+G14)/'Operational Data'!$G$21, "-") -> -
A15: Total Hazardous Waste | E15: =SUM(E11:F14) -> 8599.62 | G15: =SUM(G11:H14) -> 0 | I15: =IF((E15+G15)>0,(E15+G15)/'Operational Data'!$G$21, "-") -> 0.01874127389
A17: 2) Non-Hazardous Wastes
A18: IBA | C18: Recovery | E18: ='Operational Data'!G34 -> 108601.32 | I18: =IF((E18+G18)>0,(E18+G18)/'Operational Data'!$G$21, "-") -> 0.2366763977
A19: Total Metals | C19: Recovery | E19: ='Operational Data'!G35 -> 17930 | I19: =IF((E19+G19)>0,(E19+G19)/'Operational Data'!$G$21, "-") -> 0.03907510342
A20: Process Water | I20: =IF((E20+G20)>0,(E20+G20)/'Operational Data'!$G$21, "-") -> -
I21: =IF((E21+G21)>0,(E21+G21)/'Operational Data'!$G$21, "-") -> -
I22: =IF((E22+G22)>0,(E22+G22)/'Operational Data'!$G$21, "-") -> -
A23: Total Non-Hazardous Waste | E23: =SUM(E18:F22) -> 126531.32 | G23: =SUM(G18:H22) -> 0 | I23: =IF((E23+G23)>0,(E23+G23)/'Operational Data'!$G$21, "-") -> 0.2757515011
A24: TOTAL WASTE | E24: =+E23+E15 -> 135130.94 | G24: =+G23+G15 -> 0 | I24: =IF((E24+G24)>0,(E24+G24)/'Operational Data'!$G$21, "-") -> 0.294492775
A26: Operator’s comments :
A31: =+A1 -> 2021 | B31: Annual Reporting of Water and Other Raw Material Usage
A32: Raw Material | E32: Usage | G32: Unit | H32: Specific Useage | J32: Unit
A33: Mains Water | E33: =+'Operational Data'!G41 -> 53127 | G33: m3 | H33: =IF(E33>0,E33/'Operational Data'!$G$21,"-") -> 0.1157804249 | J33: m3/te
A34: Total Water | E34: =+'Operational Data'!G42+'Operational Data'!G41 -> 821086 | G34: m3 | H34: =IF(E34>0,E34/'Operational Data'!$G$21,"-") -> 1.789404371 | J34: m3/te
A35: Urea / Ammonia | E35: =+'Operational Data'!G43 -> 1892540 | G35: kg | H35: =IF(E35>0,E35/'Operational Data'!$G$21,"-") -> 4.124439276 | J35: kg/te
A36: Activated Carbon | E36: =+'Operational Data'!G44 -> 88980 | G36: kg | H36: =IF(E36>0,E36/'Operational Data'!$G$21,"-") -> 0.1939153766 | J36: kg/te
A37: Lime / hydrated lime / Sodium Bicarb. | E37: =+'Operational Data'!G45 -> 3845720 | G37: kg | H37: =IF(E37>0,E37/'Operational Data'!$G$21,"-") -> 8.381032165 | J37: kg/te
A39: Operator’s comments :
A43: =+A31 -> 2021 | B43: Annual Reporting of other performance indicators
A44: Parameter | C44: Results by Line
C45: A1 | D45: A2 | E45: A3 | F45: A4 | G45: A5 | I45: Turbine 1 | J45: Turbine 2
A46: Operating hours for the year, hours | C46: ='Operational Data'!G51 -> 7438.24 | D46: ='Operational Data'!G52 -> 7773.1
A47: Number of periods of abnormal operation, qty. | C47: 0 | D47: 0
A48: Cumulative hours of abnormal operation for this year, hours | C48: 0 | D48: 0
A50: Operator’s comments :
A54: Signed: | G54: Date:

Sheet Energy Form 1
A1: =+'Cover Page'!C39 -> 2021 | B1: Annual Reporting of Energy Usage/Export
A3: =+'Cover Page'!B31 -> Permit EPR/XP3436WB/V002 | F3: Operator: | G3: =+'Cover Page'!B37:I37 -> 0
A5: Facility: | B5: =+'Cover Page'!B33:I33 -> SUEZ R&R Wilton 11 EfW | F5: Form: | G5: Energy 1
A7: Reporting Period from: | D7: =+'Perf. Form 1'!D6:E6 -> January | F7: to: | G7: =+'Perf. Form 1'!G6:H6 -> December
A9: Energy Source | D9: Energy Usage | F9: Unit | G9: Specific Useage (KWh/tonne incinerated
A10: Electricity Produced | D10: =+'Operational Data'!G23 -> 213267.388 | F10: MWh | G10: =+'Operational Data'!H23 -> 464.7766448
A11: Electricity Imported | D11: =+'Operational Data'!G26 -> 521.95 | F11: MWh | G11: =+'Operational Data'!H26 -> 1.137493041
A12: Electricity Exported | D12: =+'Operational Data'!G24 -> 173665.14 | F12: MWh | G12: =+'Operational Data'!H24 -> 378.4709038
A13: Natural Gas | D13: ='Operational Data'!G47 -> 8106.79 | F13: tonnes | G13: ='Operational Data'!H47 -> 0.01766724248
A14: Steam/hot water exported | D14: =+'Operational Data'!G29 -> 332880.8848 | F14: GWh | G14: =+'Operational Data'!H29 -> 725.4520357
A18: Operator’s comments :
A29: Signed: | G29: Date:

Sheet Permit Compliance
A1: =+'Cover Page'!$B$29 -> Annual Performance Report 2021 | E1: =+'Cover Page'!$B$33 -> SUEZ R&R Wilton 11 EfW
A3: Summary of Permit Compliance
A5: Compliance with permit limits for continuously monitored pollutants
A7: The plant met its emission limits as shown in the table below:
A8: Substance | C8: Percentage time compliant during operation
C9: Half-hourly limit | F9: Daily limit
A10: Particulates | C10: 1 | F10: 1
A11: Oxides of nitrogen | C11: 1 | F11: 1
A12: Sulphur dioxide | C12: 1 | F12: 1
A13: Carbon monoxide | C13: 100% 95% of 10-min averages | F13: 1
A14: Total organic carbon | C14: 1 | F14: 1
A15: Hydrogen chloride | C15: 1 | F15: 1
A16: Hydrogen fluoride | C16: NA | F16: NA
A19: Summary of any notifications or non-compliances under the permit
A20: Date | B20: Summary of notification or non-compliance [including Line/Reference] | E20: Reason | H20: Measures taken to prevent reoccurrence
A27: Summary of any complaints received and actions to taken to resolve them.
A28: Date | B28: Summary of complaint [including Line/Reference] | E28: Reason * | H28: Measures taken to prevent reoccurrence
E34: * including whether substantiated by the operator or the EA

Sheet Improvements
A1: =+'Cover Page'!$B$29 -> Annual Performance Report 2021 | E1: =+'Cover Page'!$B$33 -> SUEZ R&R Wilton 11 EfW
A3: Summary of Plant Improvements
A5: Summary of any efficiency improvements that have been completed within the year.
A6: The improvements made in 2020 that allowed us to optimise our lime dosing in 2021 provided a large saving, with raw lime usage and APCR production reductions of around 800 tonnes and 970 tonnes respectively. In early 2021 we identified what we believed was a steam system efficiency loss which was determined to be likely due to steam losses through various sub systems. Some of these sub systems had also caused us availability losses in the past and so we identified some key areas for process improvement. In the major 2021 outage we executed the first group of improvements which, in particular, involved HP steam valve replacement and complete overhauls, isolation of redundant equipment and optimisation of the turbine LP gland. In total, we believe we have seen an increase in electrical generation at the turbine generator of around 1.0 - 1.5 MW. Further improvements are planned for 2022 which may slightly increase this further. Following the addition of SPGs in the boiler third passes in 2020, online explosive cleaning was much reduced and this contributed to our positive reductions in unplanned availability losses in 2021.
A16: Summary of any permit improvement conditions that have been completed within the year and the resulting environmental benefits.
A17: None, completed in previous years.
A27: Summary of any changes to the plant or operating techniques which required a variation to the permit and a summary of the resulting environmental impact.
A28: None.
A38: Summary of any other improvements made to the plant or planned to be made and a summary of the resulting environmental benefits.
A39: Lime usage and APCR production improved as described above following optimisation.

Sheet Public Liasion
A1: =+'Cover Page'!$B$29 -> Annual Performance Report 2021 | E1: =+'Cover Page'!$B$33 -> SUEZ R&R Wilton 11 EfW
A3: Details of Public & Stakeholder Liasion
A5: Summary of events held during the reporting year.
A6: Date | C6: Description
A7: 2021-03-09 | C7: Investment Party - Site Visit
A9: 2021-07-28 | C9: Sembcorp - Wilton Operational Meeting
A11: 2021-10-08 | C11: Redcar Paliament - Site Visit
A13: 2021-10-27 | C13: Sembcorp - Wilton Operational Meeting
A15: 2021-11-12 | C15: EA – Site visit
A17: 2021-11-19 | C17: MWDA - Paul Jobe Compliance Visit
A19: List of events planned for next year
A20: Date | C20: Description
A32: If you wish to be involved in the public liasion programme, please contact _________________

Sheet Residue Quality
A1: =+'Cover Page'!$B$29 -> Annual Performance Report 2021 | E1: =+'Cover Page'!$B$33 -> SUEZ R&R Wilton 11 EfW
A3: Residue Quality Monitoring Requirements
A5: Summary of monitoring undertaken and compliance
A6: Quarterly IBA & APCR samples taken on Lines 1&2
A8: Fortnightly hazard assessment carried out on Lines 1&2
A13: Commentary on any specific events
A14: Date & Event | C14: Description
A27: Residue Quality Monitoring Results
A28: Parameter (unit) | C28: Limit | D28: Normal Operation
D29: Bottom ash | F29: APC Residues
A30: Loss on Ignition (%) | C30: <5% | D30: -
A31: ToC (%) | C31: <3% | D31: 0.0118
A32: No. of Assessments Undertaken | C32: --- | D32: 1 samples per quarter
A33: No. of Hazardous Assessments | C33: --- | D33: Fortnightly hazard assessment, unless plant outage
A35: Comments :

Sheet Water
A1: =+'Cover Page'!$B$29 -> Annual Performance Report 2021 | E1: =+'Cover Page'!$B$33 -> SUEZ R&R Wilton 11 EfW
A3: Emissions to Water
A5: Summary of monitoring undertaken and compliance
A6: None carried out
A13: Commentary on any specific events
A14: Date & Event | C14: Description
A22: Emissions to Water / Sewer
A23: Parameter | D23: Monitoring Frequency | G23: Limit | H23: Target | I23: Max. | J23: Average

Sheet Air (periodic)
A1: =+'Cover Page'!$B$29 -> Annual Performance Report 2021 | E1: =+'Cover Page'!$B$33 -> SUEZ R&R Wilton 11 EfW
A3: Emissions to Air (periodically monitored)
A5: Summary of monitoring undertaken, standards used and compliance | M5: Notes:
A6: Monitoring completed biannually. | M6: Template may require adjustment for any bespoke monitoring requirements of permit.
A9: Results of emissions to air that are periodically monitored
A10: Substance | C10: Ref. Period | D10: Emission Limit Value | F10: Average | M10: User to add additional tables as necessary, depending on whether quarterly or bi-annual reporting is required for the compliance year
F11: A1 | G11: A2 | H11: A3 | I11: A4 | J11: A5
A12: Hydrogen fluoride | C12: 1 hr | D12: 2 mg/m3 | F12: 0.03 | G12: 0.0275
A13: Cd and Th and their compounds | C13: 6-8hrs | D13: 0.05 mg/m3 | F13: 0.00185 | G13: 0.00103
A14: Hg and its compounds | C14: 6-8hrs | D14: 0.05 mg/m3 | F14: 0.001 | G14: 0.00128
A15: Sb, As, Pb, Cr, Co, Cu, Mn, Ni, V and their compounds | C15: 6-8hrs | D15: 0.5 mg/m3 | F15: 0.068 | G15: 0.0775
A16: Dioxins & Furans (I-TEQ) | C16: 6-8hrs | D16: 0.1 ng/m3 | F16: 0.0076 | G16: 0.00525
A17: PCBs (WHO-TEQ Humans / Mammals) | C17: 6-8hrs | D17: None set ng/m3 | F17: 0.000585 | G17: 0.00065
A18: PCBs (WHO-TEQ Fish) | C18: 6-8hrs | D18: None set ng/m3 | F18: 2.9e-05 | G18: 2.75e-05
A19: PCBs (WHO-TEQ Birds) | C19: 6-8hrs | D19: None set ng/m3 | F19: 0.001505 | G19: 0.00147
A20: Dioxins & Furans (WHO-TEQ Humans / Mammals) | C20: 6-8hrs | D20: None set ng/m3 | F20: 0.0076 | G20: 0.0055
A21: Dioxins & Furans (WHO-TEQ Fish) | C21: 6-8hrs | D21: None set ng/m3 | F21: 0.0077 | G21: 0.0049
A22: Dioxins & Furans (WHO-TEQ Birds) | C22: 6-8hrs | D22: None set ng/m3 | F22: 0.00965 | G22: 0.00645
A23: Anthanthrene | C23: 6-8hrs | D23: None set µg/m3 | F23: 0.0015 | G23: 0.00155
A24: Benzo(a)anthracene | C24: 6-8hrs | D24: None set µg/m3 | F24: 0.0037 | G24: 0.00155
A25: Benzo(a)pyrene | C25: 6-8hrs | D25: None set µg/m3 | F25: 0.0015 | G25: 0.00155
A26: Benzo(b)fluoranthene | C26: 6-8hrs | D26: None set µg/m3 | F26: 0.00165 | G26: 0.00155
A27: Benzo(b)naptho(2,1-d) thiophene | C27: 6-8hrs | D27: None set µg/m3 | F27: 0.0015 | G27: 0.0016
A28: Benzo(c)phenanthrene | C28: 6-8hrs | D28: None set µg/m3 | F28: 0.0015 | G28: 0.00155
A29: Benzo(ghi)perylene | C29: 6-8hrs | D29: None set µg/m3 | F29: 0.0015 | G29: 0.0021
A30: Benzo(k)fluoranthene | C30: 6-8hrs | D30: None set µg/m3 | F30: 0.0015 | G30: 0.00155
A31: Cholanthrene | C31: 6-8hrs | D31: None set µg/m3 | F31: 0.0015 | G31: 0.00155
A32: Chrysene | C32: 6-8hrs | D32: None set µg/m3 | F32: 0.0071 | G32: 0.00175
A33: Cyclopenta(cd)pyrene | C33: 6-8hrs | D33: None set µg/m3 | F33: 0.0016 | G33: 0.00155
A34: Dibenzo(ai)pyrene | C34: 6-8hrs | D34: None set µg/m3 | F34: 0.0015 | G34: 0.00155
A35: Dibenzo(ah)anthracene | C35: 6-8hrs | D35: None set µg/m3 | F35: 0.0015 | G35: 0.00155
A36: Fluoranthene | C36: 6-8hrs | D36: None set µg/m3 | F36: 0.0295 | G36: 0.04075
A37: Indeno(123-cd) pyrene | C37: 6-8hrs | D37: None set µg/m3 | F37: 0.0015 | G37: 0.00155
A38: Naphthalene | C38: 6-8hrs | D38: None set µg/m3 | F38: 0.3015 | G38: 0.0935
A39: Comments :

Sheet Air (CEMS)
A1: =+'Cover Page'!$B$29 -> Annual Performance Report 2021 | I1: =+'Cover Page'!$B$33 -> SUEZ R&R Wilton 11 EfW
A3: Emissions to Air (continously monitored)
P4: Notes:
A5: Summary of monitoring undertaken, standards used and compliance | P5: Template may require adjustment for any bespoke monitoring requirements of permit
A11: Results of emissions to air that are continuously monitored
A12: Substance | B12: Reference Period | C12: Emission Limit Value | D12: A1 | F12: A2 | H12: A3 | J12: A4 | L12: A5
D13: Max. | E13: Avg. | F13: Max. | G13: Avg. | H13: Max. | I13: Avg. | J13: Max. | K13: Avg. | L13: Max. | M13: Avg.
A14: Oxides of nitrogen | B14: Daily mean | C14: 200 mg/m3 | D14: =NOx!$O$19 -> 195 | E14: =NOx!$N$19 -> 171.3333333 | F14: =NOx!$O$34 -> 184 | G14: =NOx!$N$34 -> 174.3333333
B15: ½ hourly mean | C15: 400 mg/m3 | D15: =NOx!$M$19 -> 313 | E15: =NOx!$L$19 -> 171.3333333 | F15: =NOx!$M$34 -> 298 | G15: =NOx!$L$34 -> 174.3333333
A16: Particulates | B16: Daily mean | C16: 10 mg/m3 | D16: =Particulates!$O$19 -> 0.9 | E16: =Particulates!$N$19 -> 0.4 | F16: =Particulates!$O$34 -> 0.5 | G16: =Particulates!$N$34 -> 0.4
B17: ½ hourly mean | C17: 30 mg/m3 | D17: =Particulates!$M$19 -> 6.1 | E17: =Particulates!$L$19 -> 0.4 | F17: =Particulates!$M$34 -> 4.7 | G17: =Particulates!$L$34 -> 0.4
A18: Total Organic Carbon | B18: Daily mean | C18: 10 mg/m3 | D18: =TOC!$O$19 -> 0.9 | E18: =TOC!$N$19 -> 0.5583333333 | F18: =TOC!$O$34 -> 0.8 | G18: =TOC!$N$34 -> 0.3833333333
B19: ½ hourly mean | C19: 20 mg/m3 | D19: =TOC!$M$19 -> 6.2 | E19: =TOC!$L$19 -> 0.575 | F19: =TOC!$M$34 -> 5.1 | G19: =TOC!$L$34 -> 0.3833333333
A20: Hydrogen chloride | B20: Daily mean | C20: 10 mg/m3 | D20: =HCl!$O$19 -> 9 | E20: =HCl!$N$19 -> 5.583333333 | F20: =HCl!$O$34 -> 9 | G20: =HCl!$N$34 -> 6.5
B21: ½ hourly mean | C21: 60 mg/m3 | D21: =HCl!$M$19 -> 15 | E21: =HCl!$L$19 -> 5.583333333 | F21: =HCl!$M$34 -> 17 | G21: =HCl!$L$34 -> 6.5
A22: Sulphur dioxide | B22: Daily mean | C22: 50 mg/m3 | D22: ='SO2'!$O$19 -> 47 | E22: ='SO2'!$N$19 -> 27.5 | F22: ='SO2'!$O$34 -> 41 | G22: ='SO2'!$N$34 -> 26.83333333
B23: ½ hourly mean | C23: 200 mg/m3 | D23: ='SO2'!$M$19 -> 119 | E23: ='SO2'!$L$19 -> 27.5 | F23: ='SO2'!$M$34 -> 88 | G23: ='SO2'!$L$34 -> 26.83333333
A24: Carbon monoxide | B24: Daily mean | C24: 50 mg/m3 | D24: ='CO 95% 10 min'!Q19 -> 16 | E24: ='CO 95% 10 min'!P19 -> 7.083333333 | F24: ='CO 95% 10 min'!Q34 -> 14 | G24: ='CO 95% 10 min'!P34 -> 5.916666667
B25: ½ hourly mean * | C25: 100 mg/m3 *
B26: 95%ile 10-min avg * | C26: 150 mg/m3 * | D26: ='CO 95% 10 min'!M19 -> 11.83333333 | F26: ='CO 95% 10 min'!M34 -> 9.75
A27: Ammonia | B27: Daily mean | C27: No limit set | D27: ='NH3'!$O$19 -> 4 | E27: ='NH3'!$N$19 -> 1.083333333 | F27: ='NH3'!$O$34 -> 4 | G27: ='NH3'!$N$34 -> 1.166666667
A28: * = delete or amend as appropriate
A29: Comments :

Sheet HCl
A1: =+'Cover Page'!$B$29 -> Annual Performance Report 2021 | E1: =+'Cover Page'!$B$33 -> SUEZ R&R Wilton 11 EfW
A3: Monitoring of Hydrogen Chloride emissions | D3: Whole Installation | G3: See Notes in Cell Q3 | J3: =+A3 -> Monitoring of Hydrogen Chloride emissions | N3: Per Combustion Line | Q3: Notes:
Q4: User to add logic to complete Whole installation, Table A5:G18. From the data in Per Combustion Line, Table J6:O79, subject to No. of lines installed
A5: mg/Nm3 | B5: 1/2 Hourly Reference Periods | E5: Daily Reference Periods
A6: =+'Cover Page'!C39 -> 2021 | B6: 1/2 hourly HCl ELV | C6: Monthly 1/2 hourly mean | D6: Highest 1/2 hourly maximum | E6: Daily HCl ELV | F6: Monthly daily mean | G6: Highest daily maximum | J6: =+A6 -> 2021 | K6: mg/Nm3 | L6: Monthly 1/2 hourly mean | M6: Monthly 1/2 hourly maximum | N6: Monthly daily mean | O6: Monthly daily maximum
A7: Jan | B7: 60 | C7: =AVERAGE(L7,L22) -> 7 | D7: =MAX(M7,M22) -> 13 | E7: 10 | F7: =AVERAGE(N7,N22) -> 7 | G7: =MAX(O7,O22) -> 9 | J7: A1 | K7: Jan | L7: 7 | M7: 11 | N7: 7 | O7: 9
A8: Feb | B8: 60 | C8: =AVERAGE(L8,L23) -> 6.5 | D8: =MAX(M8,M23) -> 12 | E8: 10 | F8: =AVERAGE(N8,N23) -> 6.5 | G8: =MAX(O8,O23) -> 8 | K8: Feb | L8: 7 | M8: 12 | N8: 7 | O8: 8
A9: Mar | B9: 60 | C9: 8 | D9: 17 | E9: 10 | F9: 8 | G9: 9 | K9: Mar | L9: 8 | M9: 13 | N9: 8 | O9: 9 | Q9: Whole Installation table A5:G18:
A10: Apr | B10: 60 | C10: 6.5 | D10: 12 | E10: 10 | F10: 6.5 | G10: 9 | K10: Apr | L10: 5 | M10: 11 | N10: 5 | O10: 8 | Q10: Mean: for 1/2 hourly and daily periods calculate mean of values across all operational combustion lines for the month
A11: May | B11: 60 | C11: 6 | D11: 11 | E11: 10 | F11: 6 | G11: 9 | K11: May | L11: 5 | M11: 10 | N11: 5 | O11: 7
A12: Jun | B12: 60 | C12: 7 | D12: 15 | E12: 10 | F12: 7 | G12: 9 | K12: Jun | L12: 6 | M12: 15 | N12: 6 | O12: 8
A13: Jul | B13: 60 | C13: 8 | D13: 11 | E13: 10 | F13: 8 | G13: 9 | K13: Jul | L13: 8 | M13: 11 | N13: 8 | O13: 9 | Q13: Maximum: for 1/2 hourly and daily periods use the highest value across all operational combustion lines for the month
A14: Aug | B14: 60 | C14: 7 | D14: 12 | E14: 10 | F14: 7 | G14: 9 | K14: Aug | L14: 6 | M14: 11 | N14: 6 | O14: 9
A15: Sep | B15: 60 | C15: 5.5 | D15: 10 | E15: 10 | F15: 5.5 | G15: 8 | K15: Sep | L15: 3 | M15: 4 | N15: 3 | O15: 3
A16: Oct | B16: 60 | C16: 3.5 | D16: 7 | E16: 10 | F16: 3.5 | G16: 4 | K16: Oct | L16: 4 | M16: 6 | N16: 4 | O16: 4
A17: Nov | B17: 60 | C17: 3.5 | D17: 7 | E17: 10 | F17: 3.5 | G17: 5 | K17: Nov | L17: 4 | M17: 7 | N17: 4 | O17: 5
A18: Dec | B18: 60 | C18: 4 | D18: 13 | E18: 10 | F18: 4 | G18: 5 | K18: Dec | L18: 4 | M18: 8 | N18: 4 | O18: 5
K19: Annual | L19: =AVERAGE(L7:L18) -> 5.583333333 | M19: =MAX(M7:M18) -> 15 | N19: =AVERAGE(N7:N18) -> 5.583333333 | O19: =MAX(O7:O18) -> 9
J21: =+A6 -> 2021 | K21: mg/Nm3 | L21: Monthly 1/2 hourly mean | M21: Monthly 1/2 hourly maximum | N21: Monthly daily mean | O21: Monthly daily maximum
J22: A2 | K22: Jan | L22: 7 | M22: 13 | N22: 7 | O22: 8
K23: Feb | L23: 6 | M23: 10 | N23: 6 | O23: 8
K24: Mar | L24: 8 | M24: 17 | N24: 8 | O24: 9
K25: Apr | L25: 8 | M25: 12 | N25: 8 | O25: 9
K26: May | L26: 7 | M26: 11 | N26: 7 | O26: 9
K27: Jun | L27: 8 | M27: 10 | N27: 8 | O27: 9
K28: Jul | L28: 8 | M28: 11 | N28: 8 | O28: 9
K29: Aug | L29: 8 | M29: 12 | N29: 8 | O29: 9
K30: Sep | L30: 8 | M30: 10 | N30: 8 | O30: 8
K31: Oct | L31: 3 | M31: 7 | N31: 3 | O31: 4
K32: Nov | L32: 3 | M32: 7 | N32: 3 | O32: 4
K33: Dec | L33: 4 | M33: 13 | N33: 4 | O33: 5
K34: Annual | L34: =AVERAGE(L22:L33) -> 6.5 | M34: =MAX(M22:M33) -> 17 | N34: =AVERAGE(N22:N33) -> 6.5 | O34: =MAX(O22:O33) -> 9
J36: =+A6 -> 2021 | K36: mg/Nm3 | L36: Monthly 1/2 hourly mean | M36: Monthly 1/2 hourly maximum | N36: Monthly daily mean | O36: Monthly daily maximum
J37: A3 | K37: Jan
K38: Feb
K39: Mar
K40: Apr
K41: May
K42: Jun
K43: Jul
K44: Aug
K45: Sep
K46: Oct
K47: Nov
A48: Comments : | K48: Dec
K49: Annual | L49: =AVERAGE(L37:L48) ->  | M49: =MAX(M37:M48) -> 0 | N49: =AVERAGE(N37:N48) ->  | O49: =MAX(O37:O48) -> 0
J51: =+A6 -> 2021 | K51: mg/Nm3 | L51: Monthly 1/2 hourly mean | M51: Monthly 1/2 hourly maximum | N51: Monthly daily mean | O51: Monthly daily maximum
J52: A4 | K52: Jan
K53: Feb
K54: Mar
K55: Apr
K56: May
K57: Jun
K58: Jul
K59: Aug
K60: Sep
K61: Oct
K62: Nov
K63: Dec
K64: Annual | L64: =AVERAGE(L52:L63) ->  | M64: =MAX(M52:M63) -> 0 | N64: =AVERAGE(N52:N63) ->  | O64: =MAX(O52:O63) -> 0
J66: =+A6 -> 2021 | K66: mg/Nm3 | L66: Monthly 1/2 hourly mean | M66: Monthly 1/2 hourly maximum | N66: Monthly daily mean | O66: Monthly daily maximum
J67: A5 | K67: Jan
K68: Feb
K69: Mar
K70: Apr
K71: May
K72: Jun
K73: Jul
K74: Aug
K75: Sep
K76: Oct
K77: Nov
K78: Dec
K79: Annual | L79: =AVERAGE(L67:L78) ->  | M79: =MAX(M67:M78) -> 0 | N79: =AVERAGE(N67:N78) ->  | O79: =MAX(O67:O78) -> 0

Sheet SO2
A1: =+'Cover Page'!$B$29 -> Annual Performance Report 2021 | E1: =+'Cover Page'!$B$33 -> SUEZ R&R Wilton 11 EfW
A3: Monitoring of Sulphur dioxide emissions | D3: Whole Installation | G3: See Notes in Cell Q3 | J3: =+A3 -> Monitoring of Sulphur dioxide emissions | N3: Per Combustion Line | Q3: Notes:
Q4: User to add logic to complete Whole installation, Table A5:G18. From the data in Per Combustion Line, Table J6:O79, subject to No. of lines installed
A5: mg/Nm3 | B5: 1/2 Hourly Reference Periods | E5: Daily Reference Periods
A6: =+'Cover Page'!C39 -> 2021 | B6: 1/2 hourly SO2 ELV | C6: Monthly 1/2 hourly mean | D6: Highest 1/2 hourly maximum | E6: Daily SO2 ELV | F6: Monthly daily mean | G6: Highest daily maximum | J6: =+A6 -> 2021 | K6: mg/Nm3 | L6: Monthly 1/2 hourly mean | M6: Monthly 1/2 hourly maximum | N6: Monthly daily mean | O6: Monthly daily maximum
A7: Jan | B7: 200 | C7: =AVERAGE(L7,L22) -> 21.5 | D7: =MAX(M7,M22) -> 53 | E7: 50 | F7: =AVERAGE(N7,N22) -> 21.5 | G7: =MAX(O7,O22) -> 31 | J7: A1 | K7: Jan | L7: 20 | M7: 53 | N7: 20 | O7: 31
A8: Feb | B8: 200 | C8: =AVERAGE(L8,L23) -> 25.5 | D8: =MAX(M8,M23) -> 53 | E8: 50 | F8: =AVERAGE(N8,N23) -> 25.5 | G8: =MAX(O8,O23) -> 36 | K8: Feb | L8: 24 | M8: 52 | N8: 24 | O8: 36
A9: Mar | B9: 200 | C9: 27.5 | D9: 58 | E9: 50 | F9: 27.5 | G9: 31 | K9: Mar | L9: 27 | M9: 49 | N9: 27 | O9: 31 | Q9: Whole Installation table A5:G18:
A10: Apr | B10: 200 | C10: 26 | D10: 61 | E10: 50 | F10: 26 | G10: 39 | K10: Apr | L10: 23 | M10: 56 | N10: 23 | O10: 39 | Q10: Mean: for 1/2 hourly and daily periods calculate mean of values across all operational combustion lines for the month
A11: May | B11: 200 | C11: 24 | D11: 53 | E11: 50 | F11: 24 | G11: 37 | K11: May | L11: 25 | M11: 53 | N11: 25 | O11: 37
A12: Jun | B12: 200 | C12: 23.5 | D12: 58 | E12: 50 | F12: 23.5 | G12: 29 | K12: Jun | L12: 23 | M12: 58 | N12: 23 | O12: 29
A13: Jul | B13: 200 | C13: 25 | D13: 52 | E13: 50 | F13: 25 | G13: 31 | K13: Jul | L13: 27 | M13: 52 | N13: 27 | O13: 31 | Q13: Maximum: for 1/2 hourly and daily periods use the highest value across all operational combustion lines for the month
A14: Aug | B14: 200 | C14: 24 | D14: 65 | E14: 50 | F14: 24 | G14: 41 | K14: Aug | L14: 22 | M14: 55 | N14: 22 | O14: 41
A15: Sep | B15: 200 | C15: 32 | D15: 119 | E15: 50 | F15: 32 | G15: 45 | K15: Sep | L15: 38 | M15: 119 | N15: 38 | O15: 45
A16: Oct | B16: 200 | C16: 34 | D16: 76 | E16: 50 | F16: 34 | G16: 47 | K16: Oct | L16: 37 | M16: 74 | N16: 37 | O16: 47
A17: Nov | B17: 200 | C17: 34 | D17: 77 | E17: 50 | F17: 34 | G17: 42 | K17: Nov | L17: 36 | M17: 54 | N17: 36 | O17: 42
A18: Dec | B18: 200 | C18: 29 | D18: 88 | E18: 50 | F18: 29 | G18: 41 | K18: Dec | L18: 28 | M18: 52 | N18: 28 | O18: 39
K19: Annual | L19: =AVERAGE(L7:L18) -> 27.5 | M19: =MAX(M7:M18) -> 119 | N19: =AVERAGE(N7:N18) -> 27.5 | O19: =MAX(O7:O18) -> 47
J21: =+A6 -> 2021 | K21: mg/Nm3 | L21: Monthly 1/2 hourly mean | M21: Monthly 1/2 hourly maximum | N21: Monthly daily mean | O21: Monthly daily maximum
J22: A2 | K22: Jan | L22: 23 | M22: 49 | N22: 23 | O22: 30
K23: Feb | L23: 27 | M23: 53 | N23: 27 | O23: 33
K24: Mar | L24: 28 | M24: 58 | N24: 28 | O24: 30
K25: Apr | L25: 29 | M25: 61 | N25: 29 | O25: 34
K26: May | L26: 23 | M26: 50 | N26: 23 | O26: 33
K27: Jun | L27: 24 | M27: 58 | N27: 24 | O27: 27
K28: Jul | L28: 23 | M28: 47 | N28: 23 | O28: 30
K29: Aug | L29: 26 | M29: 65 | N29: 26 | O29: 31
K30: Sep | L30: 26 | M30: 38 | N30: 26 | O30: 29
K31: Oct | L31: 31 | M31: 76 | N31: 31 | O31: 40
K32: Nov | L32: 32 | M32: 77 | N32: 32 | O32: 40
K33: Dec | L33: 30 | M33: 88 | N33: 30 | O33: 41
K34: Annual | L34: =AVERAGE(L22:L33) -> 26.83333333 | M34: =MAX(M22:M33) -> 88 | N34: =AVERAGE(N22:N33) -> 26.83333333 | O34: =MAX(O22:O33) -> 41
J36: =+A6 -> 2021 | K36: mg/Nm3 | L36: Monthly 1/2 hourly mean | M36: Monthly 1/2 hourly maximum | N36: Monthly daily mean | O36: Monthly daily maximum
J37: A3 | K37: Jan
K38: Feb
K39: Mar
K40: Apr
K41: May
K42: Jun
K43: Jul
K44: Aug
K45: Sep
K46: Oct
K47: Nov
A48: Comments : | K48: Dec
K49: Annual | L49: =AVERAGE(L37:L48) ->  | M49: =MAX(M37:M48) -> 0 | N49: =AVERAGE(N37:N48) ->  | O49: =MAX(O37:O48) -> 0
J51: =+A6 -> 2021 | K51: mg/Nm3 | L51: Monthly 1/2 hourly mean | M51: Monthly 1/2 hourly maximum | N51: Monthly daily mean | O51: Monthly daily maximum
J52: A4 | K52: Jan
K53: Feb
K54: Mar
K55: Apr
K56: May
K57: Jun
K58: Jul
K59: Aug
K60: Sep
K61: Oct
K62: Nov
K63: Dec
K64: Annual | L64: =AVERAGE(L52:L63) ->  | M64: =MAX(M52:M63) -> 0 | N64: =AVERAGE(N52:N63) ->  | O64: =MAX(O52:O63) -> 0
J66: =+A6 -> 2021 | K66: mg/Nm3 | L66: Monthly 1/2 hourly mean | M66: Monthly 1/2 hourly maximum | N66: Monthly daily mean | O66: Monthly daily maximum
J67: A5 | K67: Jan
K68: Feb
K69: Mar
K70: Apr
K71: May
K72: Jun
K73: Jul
K74: Aug
K75: Sep
K76: Oct
K77: Nov
K78: Dec
K79: Annual | L79: =AVERAGE(L67:L78) ->  | M79: =MAX(M67:M78) -> 0 | N79: =AVERAGE(N67:N78) ->  | O79: =MAX(O67:O78) -> 0

Sheet NOx
A1: =+'Cover Page'!$B$29 -> Annual Performance Report 2021 | E1: =+'Cover Page'!$B$33 -> SUEZ R&R Wilton 11 EfW
A3: Monitoring of Oxides of Nitrogen emissions | D3: Whole Installation | G3: See Notes in Cell Q3 | J3: =+A3 -> Monitoring of Oxides of Nitrogen emissions | N3: Per Combustion Line | Q3: Notes:
Q4: User to add logic to complete Whole installation, Table A5:G18. From the data in Per Combustion Line, Table J6:O79, subject to No. of lines installed
A5: mg/Nm3 | B5: 1/2 Hourly Reference Periods | E5: Daily Reference Periods
A6: =+'Cover Page'!C39 -> 2021 | B6: 1/2 hourly NOx ELV | C6: Monthly 1/2 hourly mean | D6: Highest 1/2 hourly maximum | E6: Daily NOx ELV | F6: Monthly daily mean | G6: Highest daily maximum | J6: =+A6 -> 2021 | K6: mg/Nm3 | L6: Monthly 1/2 hourly mean | M6: Monthly 1/2 hourly maximum | N6: Monthly daily mean | O6: Monthly daily maximum
A7: Jan | B7: 400 | C7: =AVERAGE(L7,L22) -> 169.5 | D7: =MAX(M7,M22) -> 243 | E7: 200 | F7: =AVERAGE(N7,N22) -> 169.5 | G7: =MAX(O7,O22) -> 183 | J7: A1 | K7: Jan | L7: 168 | M7: 243 | N7: 168 | O7: 183
A8: Feb | B8: 400 | C8: =AVERAGE(L8,L23) -> 172 | D8: =MAX(M8,M23) -> 228 | E8: 200 | F8: =AVERAGE(N8,N23) -> 172 | G8: =MAX(O8,O23) -> 182 | K8: Feb | L8: 169 | M8: 213 | N8: 169 | O8: 177
A9: Mar | B9: 400 | C9: 171.5 | D9: 222 | E9: 200 | F9: 171.5 | G9: 178 | K9: Mar | L9: 169 | M9: 200 | N9: 169 | O9: 170 | Q9: Whole Installation table A5:G18:
A10: Apr | B10: 400 | C10: 172 | D10: 224 | E10: 200 | F10: 172 | G10: 185 | K10: Apr | L10: 171 | M10: 224 | N10: 171 | O10: 185 | Q10: Mean: for 1/2 hourly and daily periods calculate mean of values across all operational combustion lines for the month
A11: May | B11: 400 | C11: 170.5 | D11: 202 | E11: 200 | F11: 170.5 | G11: 177 | K11: May | L11: 168 | M11: 195 | N11: 168 | O11: 169
A12: Jun | B12: 400 | C12: 171.5 | D12: 226 | E12: 200 | F12: 171.5 | G12: 180 | K12: Jun | L12: 168 | M12: 226 | N12: 168 | O12: 180
A13: Jul | B13: 400 | C13: 174.5 | D13: 219 | E13: 200 | F13: 174.5 | G13: 185 | K13: Jul | L13: 174 | M13: 219 | N13: 174 | O13: 185 | Q13: Maximum: for 1/2 hourly and daily periods use the highest value across all operational combustion lines for the month
A14: Aug | B14: 400 | C14: 174.5 | D14: 214 | E14: 200 | F14: 174.5 | G14: 183 | K14: Aug | L14: 173 | M14: 213 | N14: 173 | O14: 183
A15: Sep | B15: 400 | C15: 180.5 | D15: 236 | E15: 200 | F15: 180.5 | G15: 194 | K15: Sep | L15: 182 | M15: 236 | N15: 182 | O15: 194
A16: Oct | B16: 400 | C16: 175 | D16: 313 | E16: 200 | F16: 175 | G16: 195 | K16: Oct | L16: 176 | M16: 313 | N16: 176 | O16: 195
A17: Nov | B17: 400 | C17: 170.5 | D17: 212 | E17: 200 | F17: 170.5 | G17: 174 | K17: Nov | L17: 168 | M17: 212 | N17: 168 | O17: 171
A18: Dec | B18: 400 | C18: 172 | D18: 298 | E18: 200 | F18: 172 | G18: 179 | K18: Dec | L18: 170 | M18: 253 | N18: 170 | O18: 175
K19: Annual | L19: =AVERAGE(L7:L18) -> 171.3333333 | M19: =MAX(M7:M18) -> 313 | N19: =AVERAGE(N7:N18) -> 171.3333333 | O19: =MAX(O7:O18) -> 195
J21: =+A6 -> 2021 | K21: mg/Nm3 | L21: Monthly 1/2 hourly mean | M21: Monthly 1/2 hourly maximum | N21: Monthly daily mean | O21: Monthly daily maximum
J22: A2 | K22: Jan | L22: 171 | M22: 201 | N22: 171 | O22: 175
K23: Feb | L23: 175 | M23: 228 | N23: 175 | O23: 182
K24: Mar | L24: 174 | M24: 222 | N24: 174 | O24: 178
K25: Apr | L25: 173 | M25: 197 | N25: 173 | O25: 176
K26: May | L26: 173 | M26: 202 | N26: 173 | O26: 177
K27: Jun | L27: 175 | M27: 200 | N27: 175 | O27: 179
K28: Jul | L28: 175 | M28: 212 | N28: 175 | O28: 183
K29: Aug | L29: 176 | M29: 214 | N29: 176 | O29: 183
K30: Sep | L30: 179 | M30: 215 | N30: 179 | O30: 184
K31: Oct | L31: 174 | M31: 267 | N31: 174 | O31: 181
K32: Nov | L32: 173 | M32: 203 | N32: 173 | O32: 174
K33: Dec | L33: 174 | M33: 298 | N33: 174 | O33: 179
K34: Annual | L34: =AVERAGE(L22:L33) -> 174.3333333 | M34: =MAX(M22:M33) -> 298 | N34: =AVERAGE(N22:N33) -> 174.3333333 | O34: =MAX(O22:O33) -> 184
J36: =+A6 -> 2021 | K36: mg/Nm3 | L36: Monthly 1/2 hourly mean | M36: Monthly 1/2 hourly maximum | N36: Monthly daily mean | O36: Monthly daily maximum
J37: A3 | K37: Jan
K38: Feb
K39: Mar
K40: Apr
K41: May
K42: Jun
K43: Jul
K44: Aug
K45: Sep
K46: Oct
K47: Nov
A48: Comments : | K48: Dec
K49: Annual | L49: =AVERAGE(L37:L48) ->  | M49: =MAX(M37:M48) -> 0 | N49: =AVERAGE(N37:N48) ->  | O49: =MAX(O37:O48) -> 0
J51: =+A6 -> 2021 | K51: mg/Nm3 | L51: Monthly 1/2 hourly mean | M51: Monthly 1/2 hourly maximum | N51: Monthly daily mean | O51: Monthly daily maximum
J52: A4 | K52: Jan
K53: Feb
K54: Mar
K55: Apr
K56: May
K57: Jun
K58: Jul
K59: Aug
K60: Sep
K61: Oct
K62: Nov
K63: Dec
K64: Annual | L64: =AVERAGE(L52:L63) ->  | M64: =MAX(M52:M63) -> 0 | N64: =AVERAGE(N52:N63) ->  | O64: =MAX(O52:O63) -> 0
J66: =+A6 -> 2021 | K66: mg/Nm3 | L66: Monthly 1/2 hourly mean | M66: Monthly 1/2 hourly maximum | N66: Monthly daily mean | O66: Monthly daily maximum
J67: A5 | K67: Jan
K68: Feb
K69: Mar
K70: Apr
K71: May
K72: Jun
K73: Jul
K74: Aug
K75: Sep
K76: Oct
K77: Nov
K78: Dec
K79: Annual | L79: =AVERAGE(L67:L78) ->  | M79: =MAX(M67:M78) -> 0 | N79: =AVERAGE(N67:N78) ->  | O79: =MAX(O67:O78) -> 0

Sheet TOC
A1: =+'Cover Page'!$B$29 -> Annual Performance Report 2021 | E1: =+'Cover Page'!$B$33 -> SUEZ R&R Wilton 11 EfW
A3: Monitoring of Total organic carbon emissions | D3: Whole Installation | G3: See Notes in Cell Q3 | J3: =+A3 -> Monitoring of Total organic carbon emissions | N3: Per Combustion Line | Q3: Notes:
Q4: User to add logic to complete Whole installation, Table A5:G18. From the data in Per Combustion Line, Table J6:O79, subject to No. of lines installed
A5: mg/Nm3 | B5: 1/2 Hourly Reference Periods | E5: Daily Reference Periods
A6: =+'Cover Page'!C39 -> 2021 | B6: 1/2 hourly TOC ELV | C6: Monthly 1/2 hourly mean | D6: Highest 1/2 hourly maximum | E6: Daily TOC ELV | F6: Monthly daily mean | G6: Highest daily maximum | J6: =+A6 -> 2021 | K6: mg/Nm3 | L6: Monthly 1/2 hourly mean | M6: Monthly 1/2 hourly maximum | N6: Monthly daily mean | O6: Monthly daily maximum
A7: Jan | B7: 20 | C7: =AVERAGE(L7,L22) -> 0.5 | D7: =MAX(M7,M22) -> 2.2 | E7: 10 | F7: =AVERAGE(N7,N22) -> 0.5 | G7: =MAX(O7,O22) -> 0.7 | J7: A1 | K7: Jan | L7: 0.6 | M7: 1.9 | N7: 0.6 | O7: 0.7
A8: Feb | B8: 20 | C8: =AVERAGE(L8,L23) -> 0.45 | D8: =MAX(M8,M23) -> 4 | E8: 10 | F8: =AVERAGE(N8,N23) -> 0.45 | G8: =MAX(O8,O23) -> 0.7 | K8: Feb | L8: 0.6 | M8: 4 | N8: 0.6 | O8: 0.7
A9: Mar | B9: 20 | C9: 0.5 | D9: 3.9 | E9: 10 | F9: 0.5 | G9: 0.8 | K9: Mar | L9: 0.6 | M9: 3.3 | N9: 0.6 | O9: 0.7 | Q9: Whole Installation table A5:G18:
A10: Apr | B10: 20 | C10: 0.3 | D10: 5.1 | E10: 10 | F10: 0.3 | G10: 0.7 | K10: Apr | L10: 0.2 | M10: 5.1 | N10: 0.2 | O10: 0.7 | Q10: Mean: for 1/2 hourly and daily periods calculate mean of values across all operational combustion lines for the month
A11: May | B11: 20 | C11: 0.5 | D11: 5.1 | E11: 10 | F11: 0.5 | G11: 0.8 | K11: May | L11: 0.6 | M11: 4.3 | N11: 0.6 | O11: 0.8
A12: Jun | B12: 20 | C12: 0.6 | D12: 6.2 | E12: 10 | F12: 0.5 | G12: 0.9 | K12: Jun | L12: 0.8 | M12: 6.2 | N12: 0.6 | O12: 0.9
A13: Jul | B13: 20 | C13: 0.5 | D13: 1.4 | E13: 10 | F13: 0.5 | G13: 0.6 | K13: Jul | L13: 0.6 | M13: 1.4 | N13: 0.6 | O13: 0.6 | Q13: Maximum: for 1/2 hourly and daily periods use the highest value across all operational combustion lines for the month
A14: Aug | B14: 20 | C14: 0.5 | D14: 3.7 | E14: 10 | F14: 0.5 | G14: 0.7 | K14: Aug | L14: 0.6 | M14: 3.7 | N14: 0.6 | O14: 0.7
A15: Sep | B15: 20 | C15: 0.45 | D15: 1.4 | E15: 10 | F15: 0.45 | G15: 0.6 | K15: Sep | L15: 0.5 | M15: 1.2 | N15: 0.5 | O15: 0.6
A16: Oct | B16: 20 | C16: 0.5 | D16: 2.6 | E16: 10 | F16: 0.5 | G16: 0.6 | K16: Oct | L16: 0.6 | M16: 2.6 | N16: 0.6 | O16: 0.6
A17: Nov | B17: 20 | C17: 0.5 | D17: 2.5 | E17: 10 | F17: 0.5 | G17: 0.7 | K17: Nov | L17: 0.6 | M17: 2.5 | N17: 0.6 | O17: 0.7
A18: Dec | B18: 20 | C18: 0.45 | D18: 2.1 | E18: 10 | F18: 0.45 | G18: 0.6 | K18: Dec | L18: 0.6 | M18: 2.1 | N18: 0.6 | O18: 0.6
K19: Annual | L19: =AVERAGE(L7:L18) -> 0.575 | M19: =MAX(M7:M18) -> 6.2 | N19: =AVERAGE(N7:N18) -> 0.5583333333 | O19: =MAX(O7:O18) -> 0.9
J21: =+A6 -> 2021 | K21: mg/Nm3 | L21: Monthly 1/2 hourly mean | M21: Monthly 1/2 hourly maximum | N21: Monthly daily mean | O21: Monthly daily maximum
J22: A2 | K22: Jan | L22: 0.4 | M22: 2.2 | N22: 0.4 | O22: 0.4
K23: Feb | L23: 0.3 | M23: 1.8 | N23: 0.3 | O23: 0.5
K24: Mar | L24: 0.4 | M24: 3.9 | N24: 0.4 | O24: 0.8
K25: Apr | L25: 0.4 | M25: 1.5 | N25: 0.4 | O25: 0.6
K26: May | L26: 0.4 | M26: 5.1 | N26: 0.4 | O26: 0.6
K27: Jun | L27: 0.4 | M27: 3.5 | N27: 0.4 | O27: 0.6
K28: Jul | L28: 0.4 | M28: 1.4 | N28: 0.4 | O28: 0.6
K29: Aug | L29: 0.4 | M29: 1.5 | N29: 0.4 | O29: 0.6
K30: Sep | L30: 0.4 | M30: 1.4 | N30: 0.4 | O30: 0.4
K31: Oct | L31: 0.4 | M31: 1.1 | N31: 0.4 | O31: 0.5
K32: Nov | L32: 0.4 | M32: 0.5 | N32: 0.4 | O32: 0.5
K33: Dec | L33: 0.3 | M33: 1.7 | N33: 0.3 | O33: 0.5
K34: Annual | L34: =AVERAGE(L22:L33) -> 0.3833333333 | M34: =MAX(M22:M33) -> 5.1 | N34: =AVERAGE(N22:N33) -> 0.3833333333 | O34: =MAX(O22:O33) -> 0.8
J36: =+A6 -> 2021 | K36: mg/Nm3 | L36: Monthly 1/2 hourly mean | M36: Monthly 1/2 hourly maximum | N36: Monthly daily mean | O36: Monthly daily maximum
J37: A3 | K37: Jan
K38: Feb
K39: Mar
K40: Apr
K41: May
K42: Jun
K43: Jul
K44: Aug
K45: Sep
K46: Oct
K47: Nov
A48: Comments : | K48: Dec
K49: Annual | L49: =AVERAGE(L37:L48) ->  | M49: =MAX(M37:M48) -> 0 | N49: =AVERAGE(N37:N48) ->  | O49: =MAX(O37:O48) -> 0
J51: =+A6 -> 2021 | K51: mg/Nm3 | L51: Monthly 1/2 hourly mean | M51: Monthly 1/2 hourly maximum | N51: Monthly daily mean | O51: Monthly daily maximum
J52: A4 | K52: Jan
K53: Feb
K54: Mar
K55: Apr
K56: May
K57: Jun
K58: Jul
K59: Aug
K60: Sep
K61: Oct
K62: Nov
K63: Dec
K64: Annual | L64: =AVERAGE(L52:L63) ->  | M64: =MAX(M52:M63) -> 0 | N64: =AVERAGE(N52:N63) ->  | O64: =MAX(O52:O63) -> 0
J66: =+A6 -> 2021 | K66: mg/Nm3 | L66: Monthly 1/2 hourly mean | M66: Monthly 1/2 hourly maximum | N66: Monthly daily mean | O66: Monthly daily maximum
J67: A5 | K67: Jan
K68: Feb
K69: Mar
K70: Apr
K71: May
K72: Jun
K73: Jul
K74: Aug
K75: Sep
K76: Oct
K77: Nov
K78: Dec
K79: Annual | L79: =AVERAGE(L67:L78) ->  | M79: =MAX(M67:M78) -> 0 | N79: =AVERAGE(N67:N78) ->  | O79: =MAX(O67:O78) -> 0

Sheet Particulates
A1: =+'Cover Page'!$B$29 -> Annual Performance Report 2021 | E1: =+'Cover Page'!$B$33 -> SUEZ R&R Wilton 11 EfW
A3: Monitoring of Particulate matter emissions | D3: Whole Installation | G3: See Notes in Cell Q3 | J3: =+A3 -> Monitoring of Particulate matter emissions | N3: Per Combustion Line | Q3: Notes:
Q4: User to add logic to complete Whole installation, Table A5:G18. From the data in Per Combustion Line, Table J6:O79, subject to No. of lines installed
A5: mg/Nm3 | B5: 1/2 Hourly Reference Periods | E5: Daily Reference Periods
A6: =+'Cover Page'!C39 -> 2021 | B6: 1/2 hourly PM ELV | C6: Monthly 1/2 hourly mean | D6: Highest 1/2 hourly maximum | E6: Daily PM ELV | F6: Monthly daily mean | G6: Highest daily maximum | J6: =+A6 -> 2021 | K6: mg/Nm3 | L6: Monthly 1/2 hourly mean | M6: Monthly 1/2 hourly maximum | N6: Monthly daily mean | O6: Monthly daily maximum
A7: Jan | B7: 30 | C7: =AVERAGE(L7,L22) -> 0.4 | D7: =MAX(M7,M22) -> 0.7 | E7: 10 | F7: =AVERAGE(N7,N22) -> 0.4 | G7: =MAX(O7,O22) -> 0.4 | J7: A1 | K7: Jan | L7: 0.4 | M7: 0.7 | N7: 0.4 | O7: 0.4
A8: Feb | B8: 30 | C8: =AVERAGE(L8,L23) -> 0.4 | D8: =MAX(M8,M23) -> 0.7 | E8: 10 | F8: =AVERAGE(N8,N23) -> 0.4 | G8: =MAX(O8,O23) -> 0.5 | K8: Feb | L8: 0.4 | M8: 0.4 | N8: 0.4 | O8: 0.4
A9: Mar | B9: 30 | C9: 0.4 | D9: 0.5 | E9: 10 | F9: 0.4 | G9: 0.4 | K9: Mar | L9: 0.4 | M9: 0.5 | N9: 0.4 | O9: 0.4 | Q9: Whole Installation table A5:G18:
A10: Apr | B10: 30 | C10: 0.4 | D10: 1.4 | E10: 10 | F10: 0.4 | G10: 0.5 | K10: Apr | L10: 0.4 | M10: 1.4 | N10: 0.4 | O10: 0.5 | Q10: Mean: for 1/2 hourly and daily periods calculate mean of values across all operational combustion lines for the month
A11: May | B11: 30 | C11: 0.4 | D11: 0.7 | E11: 10 | F11: 0.4 | G11: 0.4 | K11: May | L11: 0.4 | M11: 0.7 | N11: 0.4 | O11: 0.4
A12: Jun | B12: 30 | C12: 0.35 | D12: 1.4 | E12: 10 | F12: 0.35 | G12: 0.4 | K12: Jun | L12: 0.3 | M12: 1.4 | N12: 0.3 | O12: 0.4
A13: Jul | B13: 30 | C13: 0.4 | D13: 0.5 | E13: 10 | F13: 0.4 | G13: 0.4 | K13: Jul | L13: 0.4 | M13: 0.5 | N13: 0.4 | O13: 0.4 | Q13: Maximum: for 1/2 hourly and daily periods use the highest value across all operational combustion lines for the month
A14: Aug | B14: 30 | C14: 0.4 | D14: 0.7 | E14: 10 | F14: 0.4 | G14: 0.4 | K14: Aug | L14: 0.4 | M14: 0.6 | N14: 0.4 | O14: 0.4
A15: Sep | B15: 30 | C15: 0.45 | D15: 6.1 | E15: 10 | F15: 0.45 | G15: 0.9 | K15: Sep | L15: 0.5 | M15: 6.1 | N15: 0.5 | O15: 0.9
A16: Oct | B16: 30 | C16: 0.4 | D16: 2.6 | E16: 10 | F16: 0.4 | G16: 0.5 | K16: Oct | L16: 0.4 | M16: 0.5 | N16: 0.4 | O16: 0.4
A17: Nov | B17: 30 | C17: 0.4 | D17: 0.9 | E17: 10 | F17: 0.4 | G17: 0.4 | K17: Nov | L17: 0.4 | M17: 0.9 | N17: 0.4 | O17: 0.4
A18: Dec | B18: 30 | C18: 0.4 | D18: 4.7 | E18: 10 | F18: 0.4 | G18: 0.5 | K18: Dec | L18: 0.4 | M18: 1.1 | N18: 0.4 | O18: 0.5
K19: Annual | L19: =AVERAGE(L7:L18) -> 0.4 | M19: =MAX(M7:M18) -> 6.1 | N19: =AVERAGE(N7:N18) -> 0.4 | O19: =MAX(O7:O18) -> 0.9
J21: =+A6 -> 2021 | K21: mg/Nm3 | L21: Monthly 1/2 hourly mean | M21: Monthly 1/2 hourly maximum | N21: Monthly daily mean | O21: Monthly daily maximum
J22: A2 | K22: Jan | L22: 0.4 | M22: 0.5 | N22: 0.4 | O22: 0.4
K23: Feb | L23: 0.4 | M23: 0.7 | N23: 0.4 | O23: 0.5
K24: Mar | L24: 0.4 | M24: 0.5 | N24: 0.4 | O24: 0.4
K25: Apr | L25: 0.4 | M25: 0.5 | N25: 0.4 | O25: 0.4
K26: May | L26: 0.4 | M26: 0.5 | N26: 0.4 | O26: 0.4
K27: Jun | L27: 0.4 | M27: 0.6 | N27: 0.4 | O27: 0.4
K28: Jul | L28: 0.4 | M28: 0.5 | N28: 0.4 | O28: 0.4
K29: Aug | L29: 0.4 | M29: 0.7 | N29: 0.4 | O29: 0.4
K30: Sep | L30: 0.4 | M30: 0.6 | N30: 0.4 | O30: 0.4
K31: Oct | L31: 0.4 | M31: 2.6 | N31: 0.4 | O31: 0.5
K32: Nov | L32: 0.4 | M32: 0.7 | N32: 0.4 | O32: 0.4
K33: Dec | L33: 0.4 | M33: 4.7 | N33: 0.4 | O33: 0.4
K34: Annual | L34: =AVERAGE(L22:L33) -> 0.4 | M34: =MAX(M22:M33) -> 4.7 | N34: =AVERAGE(N22:N33) -> 0.4 | O34: =MAX(O22:O33) -> 0.5
J36: =+A6 -> 2021 | K36: mg/Nm3 | L36: Monthly 1/2 hourly mean | M36: Monthly 1/2 hourly maximum | N36: Monthly daily mean | O36: Monthly daily maximum
J37: A3 | K37: Jan
K38: Feb
K39: Mar
K40: Apr
K41: May
K42: Jun
K43: Jul
K44: Aug
K45: Sep
K46: Oct
K47: Nov
A48: Comments : | K48: Dec
K49: Annual | L49: =AVERAGE(L37:L48) ->  | M49: =MAX(M37:M48) -> 0 | N49: =AVERAGE(N37:N48) ->  | O49: =MAX(O37:O48) -> 0
J51: =+A6 -> 2021 | K51: mg/Nm3 | L51: Monthly 1/2 hourly mean | M51: Monthly 1/2 hourly maximum | N51: Monthly daily mean | O51: Monthly daily maximum
J52: A4 | K52: Jan
K53: Feb
K54: Mar
K55: Apr
K56: May
K57: Jun
K58: Jul
K59: Aug
K60: Sep
K61: Oct
K62: Nov
K63: Dec
K64: Annual | L64: =AVERAGE(L52:L63) ->  | M64: =MAX(M52:M63) -> 0 | N64: =AVERAGE(N52:N63) ->  | O64: =MAX(O52:O63) -> 0
J66: =+A6 -> 2021 | K66: mg/Nm3 | L66: Monthly 1/2 hourly mean | M66: Monthly 1/2 hourly maximum | N66: Monthly daily mean | O66: Monthly daily maximum
J67: A5 | K67: Jan
K68: Feb
K69: Mar
K70: Apr
K71: May
K72: Jun
K73: Jul
K74: Aug
K75: Sep
K76: Oct
K77: Nov
K78: Dec
K79: Annual | L79: =AVERAGE(L67:L78) ->  | M79: =MAX(M67:M78) -> 0 | N79: =AVERAGE(N67:N78) ->  | O79: =MAX(O67:O78) -> 0

Sheet CO 95% 10 min
A1: =+'Cover Page'!$B$29 -> Annual Performance Report 2021 | E1: =+'Cover Page'!$B$33 -> SUEZ R&R Wilton 11 EfW
A3: Monitoring of Carbon Monoxide (10-minute avg) | E3: Whole Installation | H3: See Notes in Cell S3 | J3: =+A3 -> Monitoring of Carbon Monoxide (10-minute avg) | O3: Per Combustion Line | Q3: Notes: | S3: Notes:
S4: User to add logic to complete Whole installation, Table A5:H18. From the data in Per Combustion Line, Table K6:Q79, subject to No. of lines installed
A5: mg/Nm3 | B5: 10-minute Reference Periods | F5: Daily Reference Periods
A6: =+'Cover Page'!C39 -> 2021 | B6: 95%ile 10-min avg CO ELV | C6: 95%ile 10-min avg maximum | D6: Monthly CO 10-min avg mean | E6: 10-min avg maximum | F6: Daily CO ELV | G6: Monthly daily mean | H6: Highest daily maximum | K6: =+A6 -> 2021 | L6: mg/Nm3 | M6: 95%ile 10-min avg maximum | N6: Monthly CO 10-min avg mean | O6: 10-min avg maximum | P6: Monthly daily mean | Q6: Monthly daily maximum
A7: Jan | B7: 150 | C7: =MAX(M7,M22) -> 8 | D7: =AVERAGE(N7,N22) -> 4.5 | E7: =MAX(O7,O22) -> 127 | F7: 50 | G7: =AVERAGE(P7,P22) -> 4.5 | H7: =MAX(Q7,Q22) -> 6 | K7: A1 | L7: Jan | M7: 8 | N7: 4 | O7: 127 | P7: 4 | Q7: 6
A8: Feb | B8: =+B7 -> 150 | C8: =MAX(M8,M23) -> 11 | D8: =AVERAGE(N8,N23) -> 6 | E8: =MAX(O8,O23) -> 269 | F8: =+F7 -> 50 | G8: =AVERAGE(P8,P23) -> 5 | H8: =MAX(Q8,Q23) -> 11 | L8: Feb | M8: 11 | N8: 6 | O8: 258 | P8: 4 | Q8: 11
A9: Mar | B9: =+B8 -> 150 | C9: 21 | D9: 6.5 | E9: 516 | F9: =+F8 -> 50 | G9: 6.5 | H9: 14 | L9: Mar | M9: 11 | N9: 7 | O9: 195 | P9: 7 | Q9: 11 | S9: Whole Installation table A5:H18:
A10: Apr | B10: 150 | C10: 12 | D10: 6.5 | E10: 282 | F10: 50 | G10: 6.5 | H10: 11 | L10: Apr | M10: 11 | N10: 7 | O10: 282 | P10: 7 | Q10: 11 | S10: Mean: for 10-min and daily periods use average of all operational combustion lines.
A11: May | B11: 150 | C11: 11 | D11: 7 | E11: 403 | F11: 50 | G11: 7 | H11: 12 | L11: May | M11: 11 | N11: 8 | O11: 321 | P11: 8 | Q11: 12
A12: Jun | B12: 150 | C12: 8 | D12: 6.5 | E12: 363 | F12: 50 | G12: 6.5 | H12: 9 | L12: Jun | M12: 8 | N12: 7 | O12: 306 | P12: 7 | Q12: 9
A13: Jul | B13: 150 | C13: 11 | D13: 7 | E13: 94 | F13: 50 | G13: 7 | H13: 10 | L13: Jul | M13: 11 | N13: 9 | O13: 94 | P13: 9 | Q13: 10 | S13: Maximum: for 10-min and daily periods use the highest of all operational combustion lines in any month.
A14: Aug | B14: 150 | C14: 14 | D14: 7.5 | E14: 874 | F14: 50 | G14: 7.5 | H14: 16 | L14: Aug | M14: 14 | N14: 9 | O14: 874 | P14: 9 | Q14: 16
A15: Sep | B15: 150 | C15: 10 | D15: 6 | E15: 121 | F15: 50 | G15: 6 | H15: 8 | L15: Sep | M15: 10 | N15: 7 | O15: 83 | P15: 7 | Q15: 8
A16: Oct | B16: 150 | C16: 7 | D16: 6 | E16: 111 | F16: 50 | G16: 6 | H16: 9 | L16: Oct | M16: 7 | N16: 7 | O16: 111 | P16: 7 | Q16: 9
A17: Nov | B17: 150 | C17: 20 | D17: 7 | E17: 367 | F17: 50 | G17: 7 | H17: 12 | L17: Nov | M17: 20 | N17: 8 | O17: 367 | P17: 8 | Q17: 12
A18: Dec | B18: 150 | C18: 20 | D18: 8.5 | E18: 1319 | F18: 50 | G18: 8.5 | H18: 9 | L18: Dec | M18: 20 | N18: 8 | O18: 242 | P18: 8 | Q18: 9
L19: Annual | M19: =AVERAGE(M7:M18) -> 11.83333333 | O19: =MAX(O7:O18) -> 874 | P19: =AVERAGE(P7:P18) -> 7.083333333 | Q19: =MAX(Q7:Q18) -> 16
K21: =+A6 -> 2021 | L21: mg/Nm3 | M21: 95%ile 10-min avg maximum | N21: Monthly CO 10-min avg mean | O21: 10-min avg maximum | P21: Monthly daily mean | Q21: Monthly daily maximum
K22: A2 | L22: Jan | M22: 8 | N22: 5 | O22: 71 | P22: 5 | Q22: 6
L23: Feb | M23: 11 | N23: 6 | O23: 269 | P23: 6 | Q23: 8
L24: Mar | M24: 21 | N24: 6 | O24: 516 | P24: 6 | Q24: 14
L25: Apr | M25: 12 | N25: 6 | O25: 173 | P25: 6 | Q25: 8
L26: May | M26: 9 | N26: 6 | O26: 403 | P26: 6 | Q26: 9
L27: Jun | M27: 7 | N27: 6 | O27: 363 | P27: 6 | Q27: 9
L28: Jul | M28: 11 | N28: 5 | O28: 49 | P28: 5 | Q28: 6
L29: Aug | M29: 10 | N29: 6 | O29: 196 | P29: 6 | Q29: 7
L30: Sep | M30: 6 | N30: 5 | O30: 121 | P30: 5 | Q30: 5
L31: Oct | M31: 5 | N31: 5 | O31: 87 | P31: 5 | Q31: 7
L32: Nov | M32: 10 | N32: 6 | O32: 25 | P32: 6 | Q32: 7
L33: Dec | M33: 7 | N33: 9 | O33: 1319 | P33: 9 | Q33: 7
L34: Annual | M34: =AVERAGE(M22:M33) -> 9.75 | O34: =MAX(O22:O33) -> 1319 | P34: =AVERAGE(P22:P33) -> 5.916666667 | Q34: =MAX(Q22:Q33) -> 14
K36: =+A6 -> 2021 | L36: mg/Nm3 | M36: 95%ile 10-min avg maximum | N36: Monthly CO 10-min avg mean | O36: 10-min avg maximum | P36: Monthly daily mean | Q36: Monthly daily maximum
K37: A3 | L37: Jan
L38: Feb
L39: Mar
L40: Apr
L41: May
L42: Jun
L43: Jul
L44: Aug
L45: Sep
L46: Oct
L47: Nov
A48: Comments : | L48: Dec
A49: Environment Agency explanatory note: The 10-minute average ELV is based on the “95th percentile”. In this case this means that 95% of the 10 minute averages in the relevant 24-hour period (i.e. 137) must be below 150 mg/Nm3, and 5% (i.e. 7) are allowed to be any value above 150 mg/Nm3. Whilst we expect operators to minimise CO emissions at all times, it is perfectly acceptable for the value of the maximum 10-minute average to be above 150 mg/Nm3, provided the 95th percentile ELV has been met for that period. | L49: Annual | M49: =AVERAGE(M37:M48) ->  | O49: =MAX(O37:O48) -> 0 | P49: =AVERAGE(P37:P48) ->  | Q49: =MAX(Q37:Q48) -> 0
K51: =+A6 -> 2021 | L51: mg/Nm3 | M51: 95%ile 10-min avg maximum | N51: Monthly CO 10-min avg mean | O51: 10-min avg maximum | P51: Monthly daily mean | Q51: Monthly daily maximum
K52: A4 | L52: Jan
L53: Feb
L54: Mar
L55: Apr
L56: May
L57: Jun
L58: Jul
L59: Aug
L60: Sep
L61: Oct
L62: Nov
L63: Dec
L64: Annual | M64: =AVERAGE(M52:M63) ->  | O64: =MAX(O52:O63) -> 0 | P64: =AVERAGE(P52:P63) ->  | Q64: =MAX(Q52:Q63) -> 0
K66: =+A6 -> 2021 | L66: mg/Nm3 | M66: 95%ile 10-min avg maximum | N66: Monthly CO 10-min avg mean | O66: 10-min avg maximum | P66: Monthly daily mean | Q66: Monthly daily maximum
K67: A5 | L67: Jan
L68: Feb
L69: Mar
L70: Apr
L71: May
L72: Jun
L73: Jul
L74: Aug
L75: Sep
L76: Oct
L77: Nov
L78: Dec
L79: Annual | M79: =AVERAGE(M67:M78) ->  | O79: =MAX(O67:O78) -> 0 | P79: =AVERAGE(P67:P78) ->  | Q79: =MAX(Q67:Q78) -> 0

Sheet NH3
A1: =+'Cover Page'!$B$29 -> Annual Performance Report 2021 | E1: =+'Cover Page'!$B$33 -> SUEZ R&R Wilton 11 EfW
A3: Monitoring of Ammnonia emissions | D3: Whole Installation | G3: See Notes in Cell Q3 | J3: =+A3 -> Monitoring of Ammnonia emissions | N3: Per Combustion Line | Q3: Notes:
Q4: User to add logic to complete Whole installation, Table A5:G18. From the data in Per Combustion Line, Table J6:O79, subject to No. of lines installed
A5: mg/Nm3 | B5: 1/2 Hourly Reference Periods | E5: Daily Reference Periods
A6: =+'Cover Page'!C39 -> 2021 | B6: 1/2 hourly NH3 ELV | C6: Monthly 1/2 hourly mean | D6: Highest 1/2 hourly maximum | E6: Daily NH3 ELV | F6: Monthly daily mean | G6: Highest daily maximum | J6: =+A6 -> 2021 | K6: mg/Nm3 | L6: Monthly 1/2 hourly mean | M6: Monthly 1/2 hourly maximum | N6: Monthly daily mean | O6: Monthly daily maximum
A7: Jan | B7: 0 | C7: =AVERAGE(L7,L22) -> 0.5 | D7: =MAX(M7,M22) -> 3 | E7: 10 | F7: =AVERAGE(N7,N22) -> 0.5 | G7: =MAX(O7,O22) -> 2 | J7: A1 | K7: Jan | L7: 1 | M7: 3 | N7: 1 | O7: 2
A8: Feb | B8: =+B7 -> 0 | C8: =AVERAGE(L8,L23) -> 1.5 | D8: =MAX(M8,M23) -> 14 | E8: =+E7 -> 10 | F8: =AVERAGE(N8,N23) -> 1.5 | G8: =MAX(O8,O23) -> 2 | K8: Feb | L8: 1 | M8: 4 | N8: 1 | O8: 2
A9: Mar | B9: =+B8 -> 0 | C9: =AVERAGE(L9,L24) -> 0.5 | D9: 12 | E9: =+E8 -> 10 | F9: 0.5 | G9: 1 | K9: Mar | L9: 0 | M9: 12 | N9: 0 | O9: 1 | Q9: Whole Installation table A5:G18:
A10: Apr | B10: 0 | C10: =AVERAGE(L10,L25) -> 1 | D10: 10 | E10: 10 | F10: 1 | G10: 3 | K10: Apr | L10: 1 | M10: 10 | N10: 1 | O10: 3 | Q10: Mean: for 1/2 hourly and daily periods calculate mean of values across all operational combustion lines for the month
A11: May | B11: 0 | C11: =AVERAGE(L11,L26) -> 1 | D11: 8 | E11: 10 | F11: 1 | G11: 2 | K11: May | L11: 1 | M11: 8 | N11: 1 | O11: 2
A12: Jun | B12: 0 | C12: =AVERAGE(L12,L27) -> 0.5 | D12: 12 | E12: 10 | F12: 0.5 | G12: 2 | K12: Jun | L12: 0 | M12: 6 | N12: 0 | O12: 1
A13: Jul | B13: 0 | C13: =AVERAGE(L13,L28) -> 1 | D13: 5 | E13: 10 | F13: 1 | G13: 2 | K13: Jul | L13: 1 | M13: 5 | N13: 1 | O13: 1 | Q13: Maximum: for 1/2 hourly and daily periods use the highest value across all operational combustion lines for the month
A14: Aug | B14: 0 | C14: =AVERAGE(L14,L29) -> 1 | D14: 6 | E14: 10 | F14: 1 | G14: 2 | K14: Aug | L14: 1 | M14: 6 | N14: 1 | O14: 1
A15: Sep | B15: 0 | C15: =AVERAGE(L15,L30) -> 2 | D15: 11 | E15: 10 | F15: 2 | G15: 4 | K15: Sep | L15: 3 | M15: 11 | N15: 3 | O15: 4
A16: Oct | B16: 0 | C16: =AVERAGE(L16,L31) -> 2 | D16: 9 | E16: 10 | F16: 2 | G16: 4 | K16: Oct | L16: 2 | M16: 9 | N16: 2 | O16: 4
A17: Nov | B17: 0 | C17: =AVERAGE(L17,L32) -> 1.5 | D17: 22 | E17: 10 | F17: 1.5 | G17: 4 | K17: Nov | L17: 1 | M17: 6 | N17: 1 | O17: 2
A18: Dec | B18: 0 | C18: =AVERAGE(L18,L33) -> 1 | D18: 50 | E18: 10 | F18: 1 | G18: 2 | K18: Dec | L18: 1 | M18: 9 | N18: 1 | O18: 2
K19: Annual | L19: =AVERAGE(L7:L18) -> 1.083333333 | M19: =MAX(M7:M18) -> 12 | N19: =AVERAGE(N7:N18) -> 1.083333333 | O19: =MAX(O7:O18) -> 4
J21: =+A6 -> 2021 | K21: mg/Nm3 | L21: Monthly 1/2 hourly mean | M21: Monthly 1/2 hourly maximum | N21: Monthly daily mean | O21: Monthly daily maximum
J22: A2 | K22: Jan | L22: 0 | M22: 3 | N22: 0 | O22: 1
K23: Feb | L23: 2 | M23: 14 | N23: 2 | O23: 2
K24: Mar | L24: 1 | M24: 3 | N24: 1 | O24: 1
K25: Apr | L25: 1 | M25: 3 | N25: 1 | O25: 1
K26: May | L26: 1 | M26: 7 | N26: 1 | O26: 2
K27: Jun | L27: 1 | M27: 12 | N27: 1 | O27: 2
K28: Jul | L28: 1 | M28: 3 | N28: 1 | O28: 2
K29: Aug | L29: 1 | M29: 5 | N29: 1 | O29: 2
K30: Sep | L30: 1 | M30: 3 | N30: 1 | O30: 1
K31: Oct | L31: 2 | M31: 6 | N31: 2 | O31: 3
K32: Nov | L32: 2 | M32: 22 | N32: 2 | O32: 4
K33: Dec | L33: 1 | M33: 50 | N33: 1 | O33: 2
K34: Annual | L34: =AVERAGE(L22:L33) -> 1.166666667 | M34: =MAX(M22:M33) -> 50 | N34: =AVERAGE(N22:N33) -> 1.166666667 | O34: =MAX(O22:O33) -> 4
J36: =+A6 -> 2021 | K36: mg/Nm3 | L36: Monthly 1/2 hourly mean | M36: Monthly 1/2 hourly maximum | N36: Monthly daily mean | O36: Monthly daily maximum
J37: A3 | K37: Jan
K38: Feb
K39: Mar
K40: Apr
K41: May
K42: Jun
K43: Jul
K44: Aug
K45: Sep
K46: Oct
K47: Nov
A48: Comments : | K48: Dec
A49: An indicated ELV value of zero in the table above means that no ammonia limit is set in the permit. | K49: Annual | L49: =AVERAGE(L37:L48) ->  | M49: =MAX(M37:M48) -> 0 | N49: =AVERAGE(N37:N48) ->  | O49: =MAX(O37:O48) -> 0
J51: =+A6 -> 2021 | K51: mg/Nm3 | L51: Monthly 1/2 hourly mean | M51: Monthly 1/2 hourly maximum | N51: Monthly daily mean | O51: Monthly daily maximum
J52: A4 | K52: Jan
K53: Feb
K54: Mar
K55: Apr
K56: May
K57: Jun
K58: Jul
K59: Aug
K60: Sep
K61: Oct
K62: Nov
K63: Dec
K64: Annual | L64: =AVERAGE(L52:L63) ->  | M64: =MAX(M52:M63) -> 0 | N64: =AVERAGE(N52:N63) ->  | O64: =MAX(O52:O63) -> 0
J66: =+A6 -> 2021 | K66: mg/Nm3 | L66: Monthly 1/2 hourly mean | M66: Monthly 1/2 hourly maximum | N66: Monthly daily mean | O66: Monthly daily maximum
J67: A5 | K67: Jan
K68: Feb
K69: Mar
K70: Apr
K71: May
K72: Jun
K73: Jul
K74: Aug
K75: Sep
K76: Oct
K77: Nov
K78: Dec
K79: Annual | L79: =AVERAGE(L67:L78) ->  | M79: =MAX(M67:M78) -> 0 | N79: =AVERAGE(N67:N78) ->  | O79: =MAX(O67:O78) -> 0
